Cogmind - Beta 14 @@@ ROGUE MODE // 2024.09.21 @ 15:15:14 Player: DZKane Result: Destroyed by G-34 Mercenary with Small Laser Performance ------------- Evolutions (0) 0 Regions Visited (4) 800 Robots Destroyed (29) 145 Value Destroyed (925) 925 Prototype IDs (23) 460 Alien Tech Used (0) 0 Bonus (300) 300 TOTAL SCORE: 2630 Bonus ------- Aligned with FarCom 300 Cogmind --------- Core Integrity 0/250 Matter 300/300 Energy 250/250 System Corruption 0% Temperature Cool (6) Movement Treading (160) Location -9/Mines Parts ------- > --- POWER (1) -------- Ion Engine > --- PROPULSION (2) --- Light Treads Light Treads > --- UTILITY (2) ------ Large Storage Unit Light Armor Plating > --- WEAPON (2) ------- Heavy Assault Rifle Makeshift Spear > --- INVENTORY (15) --- Light Ion Engine Medium Storage Unit High-capacity Matter Pod (200) High-capacity Matter Pod (200) High-capacity Matter Pod (200) High-capacity Matter Pod (200) Light Armor Plating Light Armor Plating Latent Energy Streamer Grenade Launcher Rocket Launcher Datajack Mining Laser Peak State ------------ > --- POWER ------------ Ion Engine > --- PROPULSION ------- Light Treads Light Treads > --- UTILITY ---------- Large Storage Unit Light Armor Plating > --- WEAPON ----------- Heavy Assault Rifle Makeshift Spear > --- INVENTORY -------- Light Ion Engine Medium Storage Unit High-capacity Matter Pod High-capacity Matter Pod High-capacity Matter Pod High-capacity Matter Pod Light Armor Plating Light Armor Plating Latent Energy Streamer Grenade Launcher Rocket Launcher Datajack Mining Laser [Rating: 13] Favorites ----------- Power Ion Engine Engine Ion Engine Propulsion Light Treads Treads Light Treads Leg Aluminum Leg Utility Light Armor Plating Device Sensor Array Storage Small Storage Unit Protection Light Armor Plating Weapon Heavy Assault Rifle Energy Gun Beam Rifle Energy Cannon Beam Cannon Ballistic Gun Heavy Assault Rifle Ballistic Cannon Light Cannon Launcher Grenade Launcher Piercing Weapon Makeshift Spear Build | -11 -10 -10 -10 -9 ------- Run | Yrd Mat Min Exi Min Slots Evolved . | . . . . . Power . | . . . . . Propulsion . | . . . . . Utility . | . . . . . Weapon . | . . . . . Parts Attached 18 | . 7 8 3 . Power 2 | . . 2 . . Engine 2 | . . 2 . . Core . | . . . . . Reactor . | . . . . . Propulsion 3 | . 2 1 . . Treads 3 | . 2 1 . . Leg . | . . . . . Wheel . | . . . . . Hover . | . . . . . Flight . | . . . . . Utility 6 | . 2 2 2 . Device 1 | . 1 . . . Storage 2 | . . . 2 . Processor . | . . . . . Hackware . | . . . . . Protection 3 | . 1 2 . . Artifact . | . . . . . Weapon 7 | . 3 3 1 . Energy Gun 1 | . . 1 . . Energy Cannon 1 | . 1 . . . Ballistic Gun 1 | . . 1 . . Ballistic Cannon 2 | . 2 . . . Launcher 1 | . . 1 . . Special Weapon . | . . . . . Impact Weapon . | . . . . . Slashing Weapon . | . . . . . Piercing Weapon 1 | . . . 1 . Special Melee Weapon . | . . . . . Unidentified Prototypes . | . . . . . Parts Lost 4 | . . 4 . . Power 1 | . . 1 . . Propulsion 1 | . . 1 . . Utility 1 | . . 1 . . Weapon 1 | . . 1 . . Highest Loss Streak 3 | . . 3 . . To Critical Strikes . | . . . . . Average Slot Usage (%) 98 | . 99 97 100 100 Engine 12 | . 14 11 14 14 Treads 26 | . 22 27 28 28 Leg 1 | . 5 . . . Storage 14 | . 14 14 14 14 Protection 13 | . 11 13 14 14 Energy Gun 1 | . 2 1 . . Energy Cannon 4 | . 11 3 . . Ballistic Gun 9 | . 2 10 14 14 Ballistic Cannon 4 | . 11 3 . . Launcher 4 | . . 9 . . Piercing Weapon 3 | . . . 14 14 Peak Build Rating 13 | . 7 9 13 13 Average Rating 8 | . 6 7 11 13 On Entrance 8 | 6 6 7 9 13 Naked Turns . | . . . . . Heaviest Build 33 | 13 19 19 33 33 Greatest Support 40 | 20 40 40 40 40 Greatest Overweight (x) . | . . . . . Average Overweight (x) . | . . . . . Largest Inventory Capacity 15 | . 8 8 15 15 Average Capacity 9 | . 8 8 12 15 Most Carried 13 | . 8 8 13 13 Average Carried 7 | . 7 6 10 13 Final Capacity 15 | 8 8 8 15 15 Final Carried 13 | 6 8 8 13 13 Class Distribution -------------------- 100% | Mutant Dominant Class ---------------- Mutant | -10/Materials Mutant | -10/Mines Mutant | -10/Exiles Mutant | -9/Mines Resources | -11 -10 -10 -10 -9 ----------- Run | Yrd Mat Min Exi Min Matter Collected 1191 | 191 224 686 70 20 Remotely . | . . . . . Salvage Created 915 | . 390 436 . 89 Parts 45 | . 27 14 . 4 Haulers Intercepted . | . . . . . Recyclers Shooed 2 | . . 2 . . Parts Field Recycled . | . . . . . Retrieved Matter . | . . . . . Parts Self-Destructed . | . . . . . Prevented . | . . . . . Kills | -11 -10 -10 -10 -9 ------- Run | Yrd Mat Min Exi Min Combat Hostiles Destroyed 39 | . 11 26 . 2 Melee 2 | . . . . 2 Guns 4 | . . 4 . . Cannons 17 | . 11 6 . . AOE 16 | . . 16 . . Classes Destroyed 8 | . 4 4 . . Builder 1 | . . 1 . . Recycler 1 | . . 1 . . Operator 2 | . 2 . . . Watcher 1 | . 1 . . . Swarmer 4 | . 4 . . . Grunt 18 | . 7 9 . 2 Demolisher 2 | . . 2 . . Assembled 15 | . . 15 . . Best Kill Streak 8 | . 7 8 . 2 Combat Bots Only 8 | . 6 8 . 2 Max Kills in Single Turn 2 | . 1 2 . 1 Gunslinging . | . . . . . Exploded 2 | . . 2 . . Melee 1 | . . . . 1 Uniques/NPCs Destroyed . | . . . . . Combat | -11 -10 -10 -10 -9 -------- Run | Yrd Mat Min Exi Min Hostile Shots Fired 98 | . 26 67 . 5 Missed 26 | . 8 17 . 1 Damage Taken 1270 | . 193 1033 . 44 Core 253 | . 16 215 . 22 Absorbed by Shields . | . . . . . Core Remaining (%) 100 | 100 . . . . Volleys Fired 96 | . 22 74 . . Largest 2 | . 2 2 . . Hottest 95 | . 95 95 . . Shots Fired 150 | . 44 106 . . Gun 32 | . 6 26 . . Cannon 85 | . 38 47 . . Launcher 33 | . . 33 . . Special . | . . . . . Kinetic 66 | . 22 44 . . Thermal 48 | . 19 29 . . Explosive 33 | . . 33 . . Electromagnetic 3 | . 3 . . . Robot Hit Streak 7 | . 6 7 . . Robot Miss Streak 2 | . 2 2 . . Penetration Max . | . . . . . Secondary Targets . | . . . . . Shots Hit Robots 85 | . 24 57 . 4 Core Hits 72 | . 16 54 . 2 Critical Kills . | . . . . . Critical Parts Destroyed . | . . . . . Critical Strikes 8 | . 4 3 . 1 Burn 1 | . . 1 . . Blast 5 | . 3 2 . . Corrupt 1 | . 1 . . . Impale 1 | . . . . 1 Melee Attacks 4 | . . . . 4 Impact . | . . . . . Slashing . | . . . . . Piercing 4 | . . . . 4 Sneak Attacks . | . . . . . Combat Hostiles . | . . . . . Follow-up Attacks . | . . . . . Damage Inflicted 2312 | . 407 1796 . 109 Guns 348 | . 33 315 . . Cannons 886 | . 372 514 . . Explosions 967 | . . 967 . . Melee 109 | . . . . 109 Ramming 2 | . 2 . . . Kinetic 700 | . 216 484 . . Thermal 584 | . 174 410 . . Explosive 902 | . . 902 . . Electromagnetic 15 | . 15 . . . Impact . | . . . . . Slashing . | . . . . . Piercing 109 | . . . . 109 Highest Corruption . | . . . . . Average Corruption . | . . . . . Corruption Purged . | . . . . . Corruption Blocked . | . . . . . Overload Shots . | . . . . . Overflow Damage . | . . . . . Projectiles . | . . . . . Explosions . | . . . . . Melee . | . . . . . Knockbacks 8 | . 3 5 . . Impact . | . . . . . Kinetic 7 | . 2 5 . . Secondary 1 | . 1 . . . Self-Inflicted Damage 107 | . . 107 . . Shots 5 | . . 5 . . Rammed 1 | . 1 . . . Targets Rammed 1 | . 1 . . . Kicked . | . . . . . Crushed . | . . . . . Highest Temperature 269 | . 247 269 . . Average Temperature 88 | . 69 100 . . Received Heat Transfer 357 | . 90 243 . 24 Siege Activations . | . . . . . Robots Corrupted . | . . . . . Combat Hostiles . | . . . . . Parts Fried . | . . . . . Impact Corruptions . | . . . . . Robots Melted . | . . . . . Combat Hostiles . | . . . . . Parts Melted 1 | . . 1 . . Heat Transferred 1321 | . 370 951 . . Parts Sabotaged . | . . . . . Parts Stolen . | . . . . . Parts Stripped . | . . . . . Power Chain Reactions . | . . . . . Alert | -11 -10 -10 -10 -9 ------- Run | Yrd Mat Min Exi Min Peak Influence 277 | . 237 277 . 50 Initial 92 | . . 92 . . Average 119 | . 58 148 . 13 Maximum Alert Level 1 | . 1 1 . . Low Security (%) 87 | . 94 84 . 100 Level 1 12 | . 5 15 . . Level 2 . | . . . . . Level 3 . | . . . . . Level 4 . | . . . . . Level 5 . | . . . . . High Security . | . . . . . Max Security . | . . . . . Squads Dispatched 5 | . 5 . . . Investigation 3 | . 3 . . . Extermination . | . . . . . Reinforcement 2 | . 2 . . . Assault . | . . . . . Garrison . | . . . . . Intercept . | . . . . . Searches Triggered . | . . . . . Construction Impeded . | . . . . . Haulers Reinforced . | . . . . . Active Scanning Responses . | . . . . . Cargo Convoy Interrupts . | . . . . . Stealth | -11 -10 -10 -10 -9 --------- Run | Yrd Mat Min Exi Min Distress Signals 2 | . 1 1 . . Communications Jammed . | . . . . . Distress Signals . | . . . . . Times Spotted 49 | . 18 28 . 3 Peak Tracking Total 5 | . 5 3 . 3 Tactical Retreats 2 | . 2 . . . Traps | -11 -10 -10 -10 -9 ------- Run | Yrd Mat Min Exi Min Traps Triggered 1 | . 1 . . . Indirectly . | . . . . . Trap Hack Attempts . | . . . . . Triggered . | . . . . . Disarmed . | . . . . . Reprogrammed . | . . . . . Reused . | . . . . . Traps Extracted . | . . . . . Installed . | . . . . . Triggered . | . . . . . Machines | -11 -10 -10 -10 -9 ---------- Run | Yrd Mat Min Exi Min Machines Disabled 3 | . . 3 . . Max in Single Turn 1 | . . 1 . . Machines Repaired . | . . . . . Machines Dismantled . | . . . . . Machines Sabotaged . | . . . . . Overloaded Fab Kills . | . . . . . Hacking | -11 -10 -10 -10 -9 --------- Run | Yrd Mat Min Exi Min Machines Accessed 6 | . 4 . 2 . Terminals 3 | . 3 . . . Fabricators . | . . . . . Repair Stations . | . . . . . Recycling Units 1 | . 1 . . . Scanalyzers . | . . . . . Garrison Access . | . . . . . Total Hacks 14 | . 12 . 2 . Successful 8 | . 6 . 2 . Failed 6 | . 6 . . . Catastrophic 1 | . 1 . . . Database Lockouts . | . . . . . Manual 10 | . 9 . 1 . Terminals 11 | . 11 . . . Fabricators . | . . . . . Repair Stations . | . . . . . Recycling Units 1 | . 1 . . . Scanalyzers . | . . . . . Garrison Access . | . . . . . Terminal Hacks 5 | . 3 . 2 . Record 1 | . . . 1 . Emergency Access Points 1 | . 1 . . . Terminal Index 1 | . 1 . . . Unreport Threat 1 | . 1 . . . Derelict Proto ID Bank 1 | . . . 1 . Fabricator Hacks . | . . . . . Repair Station Hacks . | . . . . . Recycling Unit Hacks . | . . . . . Scanalyzer . | . . . . . Garrison Access Hacks . | . . . . . Unauthorized Hacks 3 | . 3 . . . Terminals 2 | . 2 . . . Skim 2 | . 2 . . . Fabricators . | . . . . . Repair Stations . | . . . . . Recycling Units 1 | . 1 . . . Tunnel 1 | . 1 . . . Scanalyzers . | . . . . . Garrison Access . | . . . . . Data Cores Recovered . | . . . . . Used . | . . . . . Hacking Detections 3 | . 3 . . . Full Trace Events 1 | . 1 . . . Feedback Events . | . . . . . Feedback Blocked . | . . . . . Robot Schematics Acquired . | . . . . . Robots Built . | . . . . . Authchips . | . . . . . Time . | . . . . . Total Robot Build Rating . | . . . . . Part Schematics Acquired . | . . . . . Parts Built . | . . . . . Authchips . | . . . . . Time . | . . . . . Total Part Build Rating . | . . . . . Parts Repaired . | . . . . . Time . | . . . . . Parts Recycled . | . . . . . Recycled Matter . | . . . . . Retrieved Matter . | . . . . . Retrieved Components . | . . . . . Parts Scanalyzed . | . . . . . Part Schematics Acquired . | . . . . . Parts Damaged . | . . . . . Bothacking | -11 -10 -10 -10 -9 ------------ Run | Yrd Mat Min Exi Min Used RIF Installer . | . . . . . Robots Hacked . | . . . . . Non-combat . | . . . . . Combat . | . . . . . Robot Hacks Applied . | . . . . . Relay Couplers Released . | . . . . . Fabnet Peak Effective % . | . . . . . Robots Rewired . | . . . . . Allies Hacked . | . . . . . Hacks Repelled . | . . . . . Allies | -11 -10 -10 -10 -9 -------- Run | Yrd Mat Min Exi Min Total Allies 1 | . . 1 . . Largest Group 1 | . . 1 1 . Highest-Rated Group 31 | . . 31 31 . Highest-Rated Ally 31 | . . 31 31 . Total Orders . | . . . . . Ally Attacks . | . . . . . Total Damage . | . . . . . Kills . | . . . . . Allies Corrupted . | . . . . . Allies Melted . | . . . . . Intel | -11 -10 -10 -10 -9 ------- Run | Yrd Mat Min Exi Min Robot Analysis Total . | . . . . . Derelict Logs Recovered 2 | . . 2 . . Drone Launches . | . . . . . Drone Recoveries . | . . . . . Exploration | -11 -10 -10 -10 -9 ------------- Run | Yrd Mat Min Exi Min Turns Passed 2704 | . 623 1465 584 32 Spaces Moved 1338 | 1 324 644 355 14 Core . | . . . . . Treads 1254 | . 241 644 355 14 Legs 84 | 1 83 . . . Wheels . | . . . . . Hover . | . . . . . Flight . | . . . . . Fastest Speed 120 | 120 120 160 160 160 Average Speed 157 | 120 149 160 160 160 Slowest Speed 160 | 120 160 160 160 160 Overloaded Moves . | . . . . . Propulsion Burnouts . | . . . . . Robots Hopped . | . . . . . Cave-ins Triggered . | . . . . . Exploration Rate (%) 47 | 2 63 98 69 6 Regions Visited 4 Branch Regions 3 Pre-discovered Areas 2 | . 1 . 1 . Known Exits Taken . | . . . . . Unknown Exits Taken 4 | 1 1 1 1 . Scrap Searched 1 | . . 1 . . Spaces Dug 17 | . . 17 . . Terrain Destroyed 204 | . . 204 . . Melee . | . . . . . Projectile . | . . . . . AOE 204 | . . 204 . . Terrain Rammed . | . . . . . Walls Destroyed . | . . . . . Machines Disabled . | . . . . . Actions | -11 -10 -10 -10 -9 --------- Run | Yrd Mat Min Exi Min Total 1783 | . 420 974 371 18 Wait 294 | . 47 238 9 . Move 1334 | . 323 643 354 14 Hop . | . . . . . Pick Up 19 | . 9 6 4 . Fast Attach 6 | . 4 2 . . Attach 5 | . . 5 . . Detach . | . . . . . Swap 7 | . 3 1 3 . Drop 17 | . 11 5 1 . Fire 96 | . 22 74 . . Melee 4 | . . . . 4 Ram . | . . . . . Kick . | . . . . . Crush 1 | . 1 . . . Escape Stasis . | . . . . . Rewire . | . . . . . Trap . | . . . . . Miscellaneous . | . . . . . Route ------- -11/Scrapyard -10/Materials (discovered 3 exits: [*Mat] / [*Min x2]) -10/Mines (discovered 3 exits: [*Mat x2] / *Exi) -10/Exiles (discovered 2 exits: [*Min x2]) -9/Mines History --------- Turn | Location | Event 1 | -11/Scrapyard | Discovered new exit (range 0) 1 | -11/Scrapyard | Entered Materials 238 | -10/Materials | Discovered new exit (range 13) 317 | -10/Materials | Build established: Mutant 343 | -10/Materials | Discovered new exit (range 13) 585 | -10/Materials | Discovered new exit (range 16) 624 | -10/Materials | Entered Mines 975 | -10/Mines | Joined a pair of Derelicts in attacking an 0b10 outpost 1041 | -10/Mines | Discovered new exit (range 12) 1126 | -10/Mines | Assembled infested the area 1140 | -10/Mines | Core integrity fell below 50% 1176 | -10/Mines | Lost 3 parts (1n1u1w) 1203 | -10/Mines | Destroyed 8 combat bots 1296 | -10/Mines | Received a Rocket Launcher from a helpful Derelict 1305 | -10/Mines | Discovered new exit (range 15) 1479 | -10/Mines | Core integrity fell below 20% 1804 | -10/Mines | A weapon hastily lodged in a ceiling crevice suddenly fell to the ground 2062 | -10/Mines | Received a Mining Laser from a helpful Derelict 2081 | -10/Mines | Deemed a non-threat by the Exiles lab entrance 2082 | -10/Mines | Discovered new exit (range 5) 2089 | -10/Mines | Entered Exiles 2089 | -10/Exiles | Accompanied by 1 ally 2115 | -10/Exiles | Discovered new exit (range 15) 2134 | -10/Exiles | Met 8R-AWN 2158 | -10/Exiles | Met EX-HEX 2252 | -10/Exiles | Met EX-DEC 2278 | -10/Exiles | Learned location of Zion (-6) 2443 | -10/Exiles | Met EX-BIN 2471 | -10/Exiles | Aligned with FarCom system 2472 | -10/Exiles | Given EX-Vault access code 2509 | -10/Exiles | Opened EX-Vault 2519 | -10/Exiles | Found Latent Energy Streamer 2553 | -10/Exiles | Warned to stay clear of 0b10 Research branches 2654 | -10/Exiles | Discovered new exit (range 12) 2673 | -10/Exiles | Left Exiles lab with Latent Energy Streamer 2673 | -10/Exiles | Entered Mines 2693 | -9/Mines | Met a Derelict bent on vengeance 2705 | -9/Mines | Destroyed by G-34 Mercenary with Small Laser Last Messages --------------- distributed network. EX-BIN: And don't even think about spreading that code around. We're gonna change it right after you leave. Most certainly not to something like 1234 which I did last time as a little joke and some thief managed to sneak in here and steal a few of HEX's prototypes. 02654_ EXIT=FOUND LOCATION=UNKNOWN GOAL=ESCAPE 02673_ Receiving FarCom transmissions... 02690_ C-30 ARC bursts open, deploying its payload. 02690_ G-47 Trooper unfolds itself. 02690_ G-34 Mercenary unfolds itself. 02694_ G-34 Mercenary destroyed. 02698_ G-47 Trooper suffers critical hit (Impale). 02698_ G-47 Trooper destroyed. 02703_ Acquired 20 matter. Map ----- +----------------------------------------------------+ | ?????????????????????????????????????????????????? | | ?????????????????????????????????????????????????? | | ?????????????????????????????????????????????????? | | ?????????????????????????????????????????????????? | | ?????????????????????????????????????????????????? | | ?????????????????????????????????????????????????? | | ?????????????????????????????????????????????????? | | ?????????????????????????????????????????????????? | | ???????????????????????######????????????????????? | | ???????????????????????? ????????????????????? | | ????????????????????????? ????????????????????? | | ??????????????????????????# ####????????????????? | | ??????????????????????????# ##???????????????? | | ??????????????????????????# #???????????????? | | ??????????????????????????# #??#????????????? | | ??????????????????????????# ## #????????????? | | ??????????????????????????## #????????????? | | ???????????????????????????## #????????????? | | ????????????????????????????### ### #????????????? | | ??????????????????????????????# #???#????????????? | | ???????????????????????????#### #????????????????? | | ???????????????????????????# #????????????????? | | ?????????????????????????###%####????????????????? | | ?????????????????????????#= #???????????????????? | | ????????????????##########%###???????????????????? | | ????????? *=@g#?????????????????????? | | ????????????????############?????????????????????? | | ?????????????????????????????????????????????????? | | ?????????????????????????????????????????????????? | | ?????????????????????????????????????????????????? | | ?????????????????????????????????????????????????? | | ?????????????????????????????????????????????????? | | ?????????????????????????????????????????????????? | | ?????????????????????????????????????????????????? | | ?????????????????????????????????????????????????? | | ?????????????????????????????????????????????????? | | ?????????????????????????????????????????????????? | | ?????????????????????????????????????????????????? | | ?????????????????????????????????????????????????? | | ?????????????????????????????????????????????????? | | ?????????????????????????????????????????????????? | | ?????????????????????????????????????????????????? | | ?????????????????????????????????????????????????? | | ?????????????????????????????????????????????????? | | ?????????????????????????????????????????????????? | | ?????????????????????????????????????????????????? | | ?????????????????????????????????????????????????? | | ?????????????????????????????????????????????????? | | ?????????????????????????????????????????????????? | | ?????????????????????????????????????????????????? | +----------------------------------------------------+ Best States ------------- Heat Dissipation 25 Energy Generation 10 Energy Capacity 250 Matter Stores 300 Matter Capacity 300 Sight Range 16 Robot Scan Range 14 Terrain Scan Density 10 Armor Coverage 150 Evasion (%) 55 Recoil Reduction 2 Item Schematics ----------------- None Robot Schematics ------------------ None Fabricated ------------ Nothing Alien Tech Used ----------------- None Achievements -------------- None Challenges ------------ None Game ------ Seed MomentumBladeThruster Manual? 0 Play Time 00:18:11 Cumulative 175.7 hours Start 2024.09.21 @ 14:55:56 End 2024.09.21 @ 15:15:14 Sessions 1 Manual Loads 0 Difficulty Rogue Special Mode None Game No. 104 Rogue 104 Adventurer 0 Explorer 0 Win Type - Total 5 Types 5/0/0/0/0/0/0/0/0 Lore% 62 Gallery% 65 Achievement% 57 Wizard Run 0 Options --------- Layout 1 ASCII 0 Keyboard 0 Movement Numpad Keybinds 0 Fullscreen 1 Font 24/Smallcaps Map View 50x35 Zoom Use 0% Tactical HUD 1 Map Filters NONE Filters NONE Steam 1 RUN: 10ec4ff7-a1a0-4e49-9182-6c29ab208efe